fUSD/lending_fUSD_20240426
["ID","MTS","AMOUNT","RATE_DAILY","PERIOD"]
[323642627,1714146697825,-500.0,0.00013187,2]
[323642628,1714146697836,-1818.45,0.00013187,2]
[323642629,1714146697847,-5084.52,0.00013187,2]
[323642630,1714146697858,-1698.98,0.00013187,2]
[323642631,1714146697868,-500.0,0.00013187,2]
[323642632,1714146697879,-2638.15,0.00013187,2]
[323642633,1714146697890,-500.0,0.00013187,2]
[323642634,1714146697900,-1991.01,0.00013187,2]
[323642635,1714146697911,-500.0,0.00013187,2]
[323642636,1714146697921,-4070.98,0.00013187,2]
[323642637,1714146697932,-2076.98,0.00013187,2]
[323642638,1714146697942,-500.0,0.00013187,2]
[323642639,1714146697952,-1015.78,0.00013187,2]
[323642640,1714146697963,-1017.72,0.00013187,2]
[323642641,1714146697975,-644.82,0.00013187,2]
[323642642,1714146697986,-500.0,0.00013187,2]
[323642643,1714146697997,-5841.05,0.00013187,2]
[323642644,1714146698007,-700.9,0.00013187,2]
[323642645,1714146698017,-2676.49,0.00013187,2]
[323642646,1714146698028,-743.73,0.00013187,2]
[323642647,1714146698038,-1119.16,0.00013187,2]
[323642648,1714146698050,-500.0,0.00013187,2]
[323642649,1714146698061,-3263.92,0.00013187,2]
[323642650,1714146698072,-739.69,0.00013187,2]
[323642651,1714146698083,-2402.81,0.00013187,2]
[323642652,1714146698093,-1345.69,0.00013187,2]
[323642653,1714146698103,-500.0,0.00013188,2]
[323642654,1714146698114,-558.17,0.00013188,2]
[323642655,1714146698125,-500.0,0.00013188,2]
[323642656,1714146698135,-500.0,0.00013188,2]
[323642657,1714146698146,-500.0,0.00013188,2]
[323642658,1714146698157,-577.08,0.00013188,2]
[323642659,1714146698167,-500.0,0.00013188,2]
[323642660,1714146698177,-500.0,0.00013188,2]
[323642661,1714146698187,-500.0,0.00013188,2]
[323642662,1714146698198,-156.46916058,0.00013188,2]
[323642663,1714146698210,-500.0,0.00013188,2]
[323642664,1714146698222,-500.0,0.00013188,2]
[323642665,1714146698234,-500.0,0.00013188,2]
[323642666,1714146698245,-500.0,0.00013188,2]
[323642667,1714146698256,-500.0,0.00013188,2]
[323642668,1714146698268,-703.76,0.00013188,2]
[323642669,1714146698280,-723.08,0.00013188,2]
[323642670,1714146698291,-500.0,0.00013188,2]
[323642671,1714146698302,-275.73963571,0.00013188,2]
[323642672,1714146698313,-506.92849431,0.00013188,2]
[323642673,1714146698324,-500.0,0.00013188,2]
[323642674,1714146698335,-520.600022,0.00013188,2]
[323642675,1714146698347,-500.0,0.00013188,2]
[323642676,1714146698358,-500.0,0.00013188,2]
[323642677,1714146698368,-500.0,0.00013188,2]
[323642678,1714146698379,-571.51,0.00013188,2]
[323642679,1714146698389,-500.0,0.00013188,2]
[323642680,1714146698400,-500.0,0.00013188,2]
[323642681,1714146698411,-500.0,0.00013188,2]
[323642682,1714146698421,-500.0,0.00013188,2]
[323642683,1714146698432,-500.0,0.00013188,2]
[323642684,1714146698442,-500.0,0.00013188,2]
[323642685,1714146698452,-500.0,0.00013188,2]
[323642686,1714146698463,-1700.69,0.00013188,2]
[323642687,1714146698477,-500.0,0.00013188,2]
[323642688,1714146698488,-500.0,0.00013188,2]
[323642689,1714146698500,-500.0,0.00013188,2]
[323642690,1714146698511,-500.0,0.00013188,2]
[323642691,1714146698523,-597.04,0.00013188,2]
[323642692,1714146698534,-567.75575104,0.00013188,2]
[323642693,1714146698545,-503.5097941,0.00013188,2]
[323642694,1714146698557,-500.0,0.00013188,2]
[323642695,1714146698568,-500.0,0.00013188,2]
[323642696,1714146698578,-500.0,0.00013188,2]
[323642697,1714146698589,-500.0,0.00013188,2]
[323642698,1714146698599,-980.11,0.00013188,2]
[323642699,1714146698610,-654.78,0.00013188,2]
[323642700,1714146698621,-665.45,0.00013188,2]
[323642701,1714146698631,-500.0,0.00013188,2]
[323642702,1714146698641,-500.0,0.00013188,2]
[323642703,1714146698652,-500.0,0.00013188,2]
[323642704,1714146698662,-500.0,0.00013188,2]
[323642705,1714146698672,-500.0,0.00013188,2]
[323642706,1714146698684,-500.0,0.00013188,2]
[323642707,1714146698694,-500.0,0.00013188,2]
[323642708,1714146698705,-500.0,0.00013188,2]
[323642709,1714146698714,-500.0,0.00013188,2]
[323642710,1714146698725,-500.0,0.00013188,2]
[323642711,1714146698735,-500.0,0.00013188,2]
[323642712,1714146698745,-507.24,0.00013188,2]
[323642713,1714146698755,-500.0,0.00013188,2]
[323642714,1714146698766,-500.0,0.00013188,2]
[323642715,1714146698777,-500.0,0.00013188,2]
[323642716,1714146698789,-500.0,0.00013188,2]
[323642717,1714146698800,-500.0,0.00013188,2]
[323642718,1714146698811,-500.0,0.00013188,2]
[323642719,1714146698821,-237.81929448,0.00013188,2]
[323642720,1714146698831,-500.0,0.00013188,2]
[323642721,1714146698841,-500.0,0.00013188,2]
[323642722,1714146698852,-500.0,0.00013188,2]
[323642723,1714146698863,-500.0,0.00013188,2]
[323642724,1714146698873,-817.8,0.00013188,2]
[323642725,1714146698883,-500.0,0.00013188,2]
[323642726,1714146698893,-500.0,0.00013188,2]
[323642727,1714146698904,-500.0,0.00013188,2]
[323642728,1714146698914,-500.0,0.00013188,2]
[323642729,1714146698924,-530.95,0.00013188,2]
[323642730,1714146698935,-500.0,0.00013188,2]
[323642731,1714146698946,-500.0,0.00013188,2]
[323642732,1714146698957,-500.0,0.00013188,2]
[323642733,1714146698968,-500.0,0.00013188,2]
[323642734,1714146698979,-500.0,0.00013188,2]
[323642735,1714146698990,-500.0,0.00013188,2]
[323642736,1714146698999,-500.0,0.00013188,2]
[323642737,1714146699009,-500.0,0.00013188,2]
[323642738,1714146699020,-542.25,0.00013188,2]
[323642739,1714146699030,-597.96,0.00013188,2]
[323642740,1714146699040,-1358.88,0.00013188,2]
[323642741,1714146699050,-619.11,0.00013188,2]
[323642742,1714146699060,-500.0,0.00013188,2]
[323642743,1714146699071,-1059.13,0.00013188,2]
[323642744,1714146699081,-500.0,0.00013188,2]
[323642745,1714146699092,-500.0,0.00013188,2]
[323642746,1714146699102,-500.0,0.00013188,2]
[323642747,1714146699112,-500.0,0.00013188,2]
[323642748,1714146699122,-500.0,0.00013188,2]
[323642749,1714146699132,-624.41328201,0.00013188,2]
[323642750,1714146699142,-500.0,0.00013188,2]
[323642751,1714146699152,-621.09,0.00013188,2]
[323642752,1714146699162,-781.34,0.00013188,2]
[323642753,1714146699173,-500.0,0.00013188,2]
[323642754,1714146699182,-500.0,0.00013188,2]
[323642755,1714146699192,-500.0,0.00013188,2]
[323642756,1714146699203,-603.94,0.00013188,2]
[323642757,1714146699213,-500.0,0.00013188,2]
[323642758,1714146699223,-2203.32,0.00013188,2]
[323642759,1714146699233,-741.55,0.00013188,2]
[323642760,1714146699243,-500.0,0.00013188,2]
[323642761,1714146699253,-707.05,0.00013188,2]
[323642762,1714146699263,-500.0,0.00013188,2]
[323642763,1714146699273,-500.0,0.00013188,2]
[323642764,1714146699284,-500.0,0.00013188,2]
[323642765,1714146699294,-500.0,0.00013188,2]
[323642766,1714146699304,-519.11149762,0.00013188,2]
[323642767,1714146699314,-1197.27,0.00013188,2]
[323642768,1714146699324,-525.11,0.00013188,2]
[323642769,1714146699334,-1151.01,0.00013188,2]
[323642770,1714146699343,-1089.37,0.00013188,2]
[323642771,1714146699353,-500.0,0.00013188,2]
[323642772,1714146699364,-500.0,0.00013188,2]
[323642773,1714146699374,-248.11,0.00013188,2]
[323642774,1714146699385,-535.73,0.00013188,2]
[323642775,1714146699395,-1314.57,0.00013188,2]
[323642776,1714146699405,-500.0,0.00013188,2]
[323642777,1714146699416,-500.0,0.00013188,2]
[323642778,1714146699426,-500.0,0.00013188,2]
[323642779,1714146699437,-1247.81,0.00013188,2]
[323642780,1714146699447,-500.0,0.00013188,2]
[323642781,1714146699457,-731.33,0.00013188,2]
[323642782,1714146699472,-609.72,0.00013188,2]
[323642783,1714146699483,-500.0,0.00013188,2]
[323642784,1714146699493,-713.5,0.00013188,2]
[323642785,1714146699503,-577.85,0.00013188,2]
[323642786,1714146699514,-500.0,0.00013188,2]
[323642787,1714146699525,-500.0,0.00013188,2]
[323642788,1714146699536,-500.0,0.00013188,2]
[323642789,1714146699547,-1867.18,0.00013188,2]
[323642790,1714146699558,-500.0,0.00013188,2]
[323642791,1714146699568,-500.0,0.00013188,2]
[323642792,1714146699579,-1355.9,0.00013188,2]
[323642793,1714146699589,-638.8,0.00013188,2]
[323642794,1714146699600,-603.07,0.00013188,2]
[323642795,1714146699610,-508.30381078,0.00013188,2]
[323642796,1714146699621,-500.0,0.00013188,2]
[323642797,1714146699631,-500.0,0.00013188,2]
[323642798,1714146699642,-500.0,0.00013188,2]
[323642799,1714146699653,-500.0,0.00013188,2]
[323642800,1714146699663,-1301.29,0.00013188,2]
[323642801,1714146699673,-500.0,0.00013188,2]
[323642802,1714146699683,-500.0,0.00013188,2]
[323642803,1714146699694,-500.0,0.00013188,2]
[323642804,1714146699704,-1375.84,0.00013188,2]
[323642805,1714146699713,-500.0,0.00013188,2]
[323642806,1714146699724,-678.19,0.00013188,2]
[323642807,1714146699735,-500.0,0.00013188,2]
[323642808,1714146699745,-724.11,0.00013188,2]
[323642809,1714146699755,-594.9,0.00013188,2]
[323642810,1714146699764,-616.05,0.00013188,2]
[323642811,1714146699774,-500.0,0.00013188,2]
[323642812,1714146699785,-500.0,0.00013188,2]
[323642813,1714146699795,-1741.91,0.00013188,2]
[323642814,1714146699805,-500.0,0.00013188,2]
[323642815,1714146699815,-500.0,0.00013188,2]
[323642816,1714146699826,-645.35,0.00013188,2]
[323642817,1714146699836,-1642.19,0.00013188,2]
[323642818,1714146699847,-453.64272705,0.00013188,2]
[323642819,1714146699857,-500.0,0.00013188,2]
[323642820,1714146699867,-877.55,0.00013188,2]
[323642821,1714146699878,-503.79616998,0.00013188,2]
[323642822,1714146699888,-1878.46,0.00013188,2]
[323642823,1714146699898,-500.0,0.00013188,2]
[323642824,1714146699909,-2626.11,0.00013188,2]
[323642825,1714146699919,-500.0,0.00013188,2]
[323642826,1714146699929,-500.0,0.00013188,2]
[323642827,1714146699940,-800.34,0.00013188,2]
[323642828,1714146699950,-500.0,0.00013188,2]
[323642829,1714146699959,-500.0,0.00013188,2]
[323642830,1714146699970,-338.77,0.00013276,2]
[323642831,1714146699980,-500.0,0.00013293,2]
[323642832,1714146699990,-524.75,0.00013293,2]
[323642833,1714146700000,-500.0,0.00013293,2]
[323642834,1714146700010,-500.0,0.00013293,2]
[323642835,1714146700019,-500.0,0.00013293,2]
[323642836,1714146700028,-500.0,0.00013293,2]
[323642837,1714146700038,-912.86,0.00013293,2]
[323642838,1714146700048,-500.0,0.00013293,2]
[323642839,1714146700057,-614.45,0.00013293,2]
[323642840,1714146700068,-831.87,0.00013293,2]
[323642841,1714146700077,-500.0,0.00013293,2]
[323642842,1714146700087,-500.0,0.00013293,2]
[323642843,1714146700097,-500.0,0.00013293,2]
[323642844,1714146700106,-500.0,0.00013293,2]
[323642845,1714146700116,-1074.39,0.00013293,2]
[323642846,1714146700126,-500.0,0.00013293,2]
[323642847,1714146700135,-500.0,0.00013293,2]
[323642848,1714146700145,-517.58605991,0.00013293,2]
[323642849,1714146700155,-500.0,0.00013293,2]
[323642850,1714146700166,-500.0,0.00013293,2]
[323642851,1714146700176,-500.0,0.00013293,2]
[323642852,1714146700185,-532.82,0.00013293,2]
[323642853,1714146700195,-175.16693767,0.00013293,2]
[323642854,1714146700205,-500.0,0.00013293,2]
[323642855,1714146700215,-500.0,0.00013293,2]
[323642856,1714146700225,-500.0,0.00013293,2]
[323642857,1714146700235,-773.66,0.00013293,2]
[323642858,1714146700246,-838.97,0.00013293,2]
[323642859,1714146700256,-500.0,0.00013293,2]
[323642860,1714146700266,-671.04,0.00013293,2]
[323642861,1714146700276,-500.0,0.00013293,2]
[323642862,1714146700286,-724.04,0.00013293,2]
[323642863,1714146700296,-500.0,0.00013293,2]
[323642864,1714146700306,-500.0,0.00013293,2]
[323642865,1714146700316,-500.0,0.00013293,2]
[323642866,1714146700331,-659.6,0.00013293,2]
[323642867,1714146700341,-500.0,0.00013293,2]
[323642868,1714146700352,-543.48,0.00013293,2]
[323642869,1714146700363,-605.67,0.00013293,2]
[323642870,1714146700375,-804.0,0.00013293,2]
[323642871,1714146700386,-415.78413067,0.00013293,2]
[323642872,1714146700397,-500.0,0.00013293,2]
[323642873,1714146700680,-504.16110891,0.00013293,2]
[323642874,1714146700691,-512.65,0.00013293,2]
[323642875,1714146700700,-500.0,0.00013293,2]
[323642876,1714146700710,-500.0,0.00013293,2]
[323642877,1714146700719,-500.0,0.00013293,2]
[323642878,1714146700731,-500.0,0.00013293,2]
[323642879,1714146700741,-733.06,0.00013293,2]
[323642880,1714146700751,-500.0,0.00013293,2]
[323642881,1714146700760,-500.0,0.00013293,2]
[323642882,1714146700770,-500.0,0.00013293,2]
[323642883,1714146700780,-584.14,0.00013293,2]
[323642884,1714146700789,-500.0,0.00013293,2]
[323642885,1714146700799,-668.64,0.00013293,2]
[323642886,1714146700810,-535.33,0.00013293,2]
[323642887,1714146700820,-500.0,0.00013293,2]
[323642888,1714146700830,-500.0,0.00013293,2]
[323642889,1714146700840,-500.0,0.00013293,2]
[323642890,1714146700850,-500.0,0.00013293,2]
[323642891,1714146700860,-359.28,0.00013293,2]
[323642892,1714146700871,-549.83,0.00013293,2]
[323642893,1714146700880,-500.0,0.00013293,2]
[323642894,1714146700890,-500.0,0.00013293,2]
[323642895,1714146700899,-500.0,0.00013293,2]
[323642896,1714146700909,-500.0,0.00013293,2]
[323642897,1714146700919,-500.0,0.00013293,2]
[323642898,1714146700928,-500.0,0.00013293,2]
[323642899,1714146700938,-500.0,0.00013293,2]
[323642900,1714146700947,-500.0,0.00013293,2]
[323642901,1714146700957,-500.0,0.00013293,2]
[323642902,1714146700966,-500.0,0.00013293,2]
[323642903,1714146700976,-1000.0,0.000133,3]
[323642904,1714146700986,-152.0,0.00013321,3]
[323642905,1714146700996,-3061.8,0.0001337,10]
[323642906,1714146701005,-5522.97,0.00013425,2]
[323642907,1714146701015,-9000.4,0.00013425,2]
[323642908,1714146701025,-500.0,0.00013459,2]
[323642909,1714146701036,-644.42,0.00013459,2]
[323642910,1714146701045,-500.0,0.0001346,2]
[323642911,1714146701055,-500.0,0.0001346,2]
[323642912,1714146701065,-500.0,0.0001346,2]
[323642913,1714146701074,-500.0,0.0001346,2]
[323642914,1714146701084,-500.0,0.0001346,2]
[323642915,1714146701093,-500.0,0.0001346,2]
[323642916,1714146701103,-500.0,0.0001346,2]
[323642917,1714146701113,-500.0,0.0001346,2]
[323642918,1714146701122,-500.0,0.0001346,2]
[323642919,1714146701132,-12541.59,0.0001346,2]
[323642920,1714146701142,-3067.93,0.0001346,2]
[323642921,1714146701151,-683.29,0.0001346,2]
[323642922,1714146701161,-532.8,0.0001346,2]
[323642923,1714146701171,-1060.15,0.0001346,2]
[323642924,1714146701182,-4294.42,0.0001346,2]
[323642925,1714146701191,-500.0,0.0001346,2]
[323642926,1714146701201,-500.0,0.0001346,2]
[323642927,1714146701211,-539.52,0.0001346,2]
[323642928,1714146701220,-500.0,0.0001346,2]
[323642929,1714146701231,-2839.5,0.0001346,2]
[323642930,1714146701240,-500.0,0.0001346,2]
[323642931,1714146701251,-500.0,0.0001346,2]
[323642932,1714146701261,-594.61,0.0001346,2]
[323642933,1714146701270,-786.04,0.0001346,2]
[323642934,1714146701280,-500.0,0.0001346,2]
[323642935,1714146701289,-633.46,0.0001346,2]
[323642936,1714146701299,-2454.05,0.0001346,2]
[323642937,1714146701309,-500.0,0.0001346,2]
[323642938,1714146701319,-500.0,0.0001346,2]
[323642939,1714146701328,-275.54497661,0.0001346,2]
[323642940,1714146701338,-556.65,0.0001346,2]
[323642941,1714146701348,-783.76,0.0001346,2]
[323642942,1714146701358,-603.38,0.0001346,2]
[323642943,1714146701367,-1769.72,0.0001346,2]
[323642944,1714146701376,-500.0,0.0001346,2]
[323642945,1714146701387,-541.56,0.0001346,2]
[323642946,1714146701397,-2540.34,0.0001346,2]
[323642947,1714146701406,-591.93,0.0001346,2]
[323642948,1714146701416,-545.47,0.0001346,2]
[323642949,1714146701426,-500.0,0.0001346,2]
[323642950,1714146701436,-500.0,0.0001346,2]
[323642951,1714146701446,-500.0,0.0001346,2]
[323642952,1714146701456,-4729.62,0.0001346,2]
[323642953,1714146701466,-500.0,0.0001346,2]
[323642954,1714146701480,-1995.34,0.0001346,2]
[323642955,1714146701489,-586.34,0.0001346,2]
[323642956,1714146701499,-500.0,0.0001346,2]
[323642957,1714146701509,-500.0,0.0001346,2]
[323642958,1714146701520,-2124.66,0.0001346,2]
[323642959,1714146701530,-3161.41,0.0001346,2]
[323642960,1714146701541,-1952.38,0.0001346,2]
[323642961,1714146701552,-153.59,0.0001346,2]
[323642962,1714146701563,-2807.16,0.0001346,2]
[323642963,1714146701573,-249.44770028,0.0001346,2]
[323642964,1714146701584,-638.27,0.0001346,2]
[323642965,1714146701595,-500.0,0.0001346,2]
[323642966,1714146701604,-3223.34,0.0001346,2]
[323642967,1714146701614,-680.69,0.0001346,2]
[323642968,1714146701624,-500.0,0.0001346,2]
[323642969,1714146701634,-2296.89,0.0001346,2]
[323642970,1714146701644,-500.0,0.0001346,2]
[323642971,1714146701653,-500.0,0.0001346,2]
[323642972,1714146701664,-2368.71,0.0001346,2]
[323642973,1714146701675,-3149.73,0.0001346,2]
[323642974,1714146701685,-500.0,0.0001346,2]
[323642975,1714146701695,-500.0,0.0001346,2]
[323642976,1714146701704,-7711.79,0.0001346,2]
[323642977,1714146701714,-712.4,0.0001346,2]
[323642978,1714146701723,-500.0,0.0001346,2]
[323642979,1714146701733,-1361.6,0.0001346,2]
[323642980,1714146701744,-743.13,0.0001346,2]
[323642981,1714146701754,-500.0,0.0001346,2]
[323642982,1714146701764,-2752.21,0.0001346,2]
[323642983,1714146701774,-535.97656714,0.0001346,2]
[323642984,1714146701783,-1414.54,0.0001346,2]
[323642985,1714146701793,-3239.13,0.0001346,2]
[323642986,1714146701803,-1163.36,0.0001346,2]
[323642987,1714146701813,-770.5,0.0001346,2]
[323642988,1714146701823,-6880.92,0.0001346,2]
[323642989,1714146701833,-525.52,0.0001346,2]
[323642990,1714146701843,-2621.73,0.0001346,2]
[323642991,1714146701853,-500.0,0.0001346,2]
[323642992,1714146701862,-2133.22,0.0001346,2]
[323642993,1714146701871,-653.66,0.0001346,2]
[323642994,1714146701881,-1077.73,0.0001346,2]
[323642995,1714146701890,-580.16,0.0001346,2]
[323642996,1714146701899,-4821.94,0.0001346,2]
[323642997,1714146701910,-2598.62,0.0001346,2]
[323642998,1714146701920,-500.0,0.0001346,2]
[323642999,1714146701930,-317.62291886,0.0001346,2]
[323643000,1714146701940,-1060.82,0.0001346,2]
[323643001,1714146701949,-500.0,0.0001346,2]
[323643002,1714146701959,-584.82,0.0001346,2]
[323643003,1714146701968,-1830.64,0.0001346,2]
[323643004,1714146701980,-500.0,0.0001346,2]
[323643005,1714146701989,-500.0,0.0001346,2]
[323643006,1714146701999,-1584.6,0.0001346,2]
[323643007,1714146702008,-1347.81,0.0001346,2]
[323643008,1714146702018,-500.0,0.0001346,2]
[323643009,1714146702027,-500.0,0.0001346,2]
[323643010,1714146702037,-5879.51,0.0001346,2]
[323643011,1714146702047,-6325.77,0.0001346,2]
[323643012,1714146702056,-638.57806935,0.0001346,2]
[323643013,1714146702066,-7205.06,0.0001346,2]
[323643014,1714146702076,-1130.16,0.0001346,2]
[323643015,1714146702085,-4293.14,0.0001346,2]
[323643016,1714146702095,-504.80789752,0.0001346,2]
[323643017,1714146702106,-500.0,0.0001346,2]
[323643018,1714146702116,-4451.04,0.0001346,2]
[323643019,1714146702126,-813.86,0.0001346,2]
[323643020,1714146702136,-500.0,0.0001346,2]
[323643021,1714146702145,-500.0,0.00013461,2]
[323643022,1714146702154,-500.0,0.00013461,2]
[323643023,1714146702163,-500.0,0.00013461,2]
[323643024,1714146702173,-500.0,0.00013461,2]
[323643025,1714146702182,-500.0,0.00013461,2]
[323643026,1714146702192,-458.21541519,0.00013461,2]
[323643027,1714146702201,-500.0,0.00013461,2]
[323643028,1714146702210,-586.06,0.00013461,2]
[323643029,1714146702219,-500.0,0.00013461,2]
[323643030,1714146702232,-551.67,0.00013461,2]
[323643031,1714146702242,-500.0,0.00013461,2]
[323643032,1714146702251,-536.41,0.00013461,2]
[323643033,1714146702261,-500.0,0.00013461,2]
[323643034,1714146702270,-500.02,0.00013461,2]
[323643035,1714146702280,-890.43,0.00013461,2]
[323643036,1714146702289,-899.93,0.00013461,2]
[323643037,1714146702299,-500.0,0.00013461,2]
[323643038,1714146702308,-500.0,0.00013461,2]
[323643039,1714146702318,-740.2,0.00013461,2]
[323643040,1714146702328,-669.41,0.00013461,2]
[323643041,1714146702338,-714.54,0.00013461,2]
[323643042,1714146702347,-500.0,0.00013461,2]
[323643043,1714146702356,-703.44,0.00013461,2]
[323643044,1714146702366,-500.0,0.00013461,2]
[323643045,1714146702376,-500.0,0.00013461,2]
[323643046,1714146702386,-1007.49,0.00013461,2]
[323643047,1714146702396,-673.51,0.00013461,2]
[323643048,1714146702405,-500.0,0.00013461,2]
[323643049,1714146702415,-500.0,0.00013461,2]
[323643050,1714146702425,-816.79,0.00013461,2]
[323643051,1714146702435,-500.0,0.00013461,2]
[323643052,1714146702446,-787.38,0.00013461,2]
[323643053,1714146702455,-500.0,0.00013461,2]
[323643054,1714146702470,-976.83,0.00013461,2]
[323643055,1714146702486,-500.0,0.00013461,2]
[323643056,1714146702496,-1809.25,0.00013461,2]
[323643057,1714146702506,-2201.55,0.00013461,2]
[323643058,1714146702516,-500.0,0.00013461,2]
[323643059,1714146702525,-500.0,0.00013461,2]
[323643060,1714146702534,-2475.02,0.00013461,2]
[323643061,1714146702545,-1021.24,0.00013461,2]
[323643062,1714146702555,-906.43,0.00013461,2]
[323643063,1714146702566,-500.0,0.00013461,2]
[323643064,1714146702576,-500.0,0.00013461,2]
[323643065,1714146702586,-1082.39,0.00013461,2]
[323643066,1714146702595,-1734.07,0.00013461,2]
[323643067,1714146702605,-507.5,0.00013461,2]
[323643068,1714146702615,-500.0,0.00013461,2]
[323643069,1714146702625,-500.0,0.00013461,2]
[323643070,1714146702634,-1366.4,0.00013461,2]
[323643071,1714146702644,-500.0,0.00013461,2]
[323643072,1714146702654,-1005.72,0.00013461,2]
[323643073,1714146702663,-500.0,0.00013461,2]
[323643074,1714146702673,-500.0,0.00013461,2]
[323643075,1714146702683,-1013.72,0.00013461,2]
[323643076,1714146702692,-988.03,0.00013461,2]
[323643077,1714146702704,-951.02,0.00013461,2]
[323643078,1714146702713,-882.88,0.00013461,2]
[323643079,1714146702725,-513.26,0.00013461,2]
[323643080,1714146702735,-1725.66,0.00013461,2]
[323643081,1714146702744,-500.0,0.00013461,2]
[323643082,1714146702753,-500.0,0.00013461,2]
[323643083,1714146702762,-1527.71,0.00013461,2]
[323643084,1714146702771,-500.0,0.00013461,2]
[323643085,1714146702780,-682.76,0.00013461,2]
[323643086,1714146702789,-522.14,0.00013461,2]
[323643087,1714146702799,-1626.54,0.00013461,2]
[323643088,1714146702808,-511.7,0.00013461,2]
[323643089,1714146702817,-500.0,0.00013461,2]
[323643090,1714146702827,-500.0,0.00013461,2]
[323643091,1714146702836,-500.0,0.00013461,2]
[323643092,1714146702846,-500.0,0.00013461,2]
[323643093,1714146702856,-500.0,0.00013461,2]
[323643094,1714146702867,-387.06,0.00013461,2]
[323643095,1714146702876,-1328.17,0.00013461,2]
[323643096,1714146702886,-317.74,0.00013461,2]
[323643097,1714146702896,-500.0,0.00013461,2]
[323643098,1714146702905,-500.0,0.00013461,2]
[323643099,1714146702915,-551.92,0.00013461,2]
[323643100,1714146702924,-500.0,0.00013461,2]
[323643101,1714146702934,-581.23,0.00013461,2]
[323643102,1714146702943,-500.0,0.00013461,2]
[323643103,1714146702953,-2126.22,0.00013461,2]
[323643104,1714146702962,-1925.01,0.00013461,2]
[323643105,1714146702975,-500.0,0.00013461,2]
[323643106,1714146702985,-544.69,0.00013461,2]
[323643107,1714146702996,-500.0,0.00013461,2]
[323643108,1714146703082,-500.0,0.00013461,2]
[323643109,1714146703093,-1631.66,0.00013461,2]
[323643110,1714146703103,-500.0,0.00013461,2]
[323643111,1714146703113,-552.62,0.00013461,2]
[323643112,1714146703122,-500.0,0.00013461,2]
[323643113,1714146703132,-1881.98,0.00013461,2]
[323643114,1714146703142,-500.0,0.00013461,2]
[323643115,1714146703151,-500.0,0.00013461,2]
[323643116,1714146703161,-597.71,0.00013461,2]
[323643117,1714146703170,-2029.94,0.00013461,2]
[323643118,1714146703180,-1848.32,0.00013461,2]
[323643119,1714146703190,-500.0,0.00013461,2]
[323643120,1714146703199,-1370.68,0.00013461,2]
[323643121,1714146703208,-1912.0,0.00013461,2]
[323643122,1714146703218,-661.25,0.00013461,2]
[323643123,1714146703232,-919.44,0.00013461,2]
[323643124,1714146703241,-500.0,0.00013461,2]
[323643125,1714146703250,-500.0,0.00013461,2]
[323643126,1714146703259,-638.29,0.00013461,2]